bitfinex-derivatives/quotes_BTCF0:USTF0_20241210
["timestamp","ask_amount","ask_price","bid_price","bid_amount"]
[1733791293476,0.15301569,97790.0,97789.0,0.00319619]
[1733791293676,0.0497128,97790.0,97789.0,1.50319619]
[1733791293980,0.0847,97792.0,97789.0,1.50319619]
[1733791293981,0.0497128,97791.0,97789.0,1.50319619]
[1733791294276,0.0497128,97790.0,97789.0,1.5]
[1733791294476,0.04971467,97791.0,97789.0,1.50319636]
[1733791294676,0.04971467,97790.0,97789.0,1.5]
[1733791294881,0.04971467,97790.0,97789.0,1.50319636]
[1733791295076,0.18357364,97790.0,97789.0,1.50319636]
[1733791295376,0.28440031,97790.0,97789.0,0.00319636]
[1733791295777,0.28440031,97790.0,97788.0,0.3648]
[1733791295778,0.21217797,97790.0,97788.0,1.8648]
[1733791295973,0.24836597,97789.0,97788.0,1.8608]
[1733791296277,0.24836597,97789.0,97788.0,0.3608]
[1733791296881,0.23318055,97789.0,97788.0,0.412913]
[1733791297179,0.04971467,97789.0,97788.0,0.43180014]
[1733791297483,0.02066963,97810.0,97788.0,0.43180014]
[1733791297484,0.1528779,97790.0,97788.0,1.93691369]
[1733791297674,0.1528779,97790.0,97789.0,0.01588714]
[1733791297875,0.04971329,97790.0,97789.0,0.06699914]
[1733791298091,0.15286201,97790.0,97789.0,0.06699914]
[1733791298585,0.18345985,97798.0,97789.0,0.01588714]
[1733791298782,0.18345985,97799.0,97797.0,0.3608]
[1733791299382,0.18342048,97804.0,97801.0,0.051106]
[1733791299680,0.18342048,97804.0,97797.0,0.3608]
[1733791299681,0.18342026,97804.0,97802.0,0.051105]
[1733791299881,0.04970858,97803.0,97802.0,0.051105]
[1733791300072,0.2331232,97803.0,97802.0,0.051105]
[1733791300474,0.183417,97803.0,97802.0,0.051105]
[1733791300670,0.04970858,97803.0,97802.0,0.06388746]
[1733791300871,0.02066963,97810.0,97804.0,0.051104]
[1733791300872,0.183417,97809.0,97804.0,0.051104]
[1733791301073,0.18340297,97809.0,97808.0,0.411902]
[1733791301280,0.04970251,97809.0,97808.0,0.411902]
[1733791301488,0.18340234,97811.0,97810.0,0.051101]
[1733791301489,0.15282591,97811.0,97810.0,0.051101]
[1733791301676,0.2331012,97817.0,97816.0,0.051098]
[1733791301877,0.04969882,97817.0,97816.0,0.411898]
[1733791302385,0.20387315,97826.0,97820.0,0.051096]
[1733791302681,0.04969862,97825.0,97820.0,0.051096]
[1733791302888,0.04969862,97825.0,97821.0,0.051095]
[1733791303082,0.04969862,97825.0,97824.0,0.051094]
[1733791303701,0.04969862,97825.0,97824.0,1.551094]
[1733791304188,0.05769862,97825.0,97824.0,1.551094]
[1733791305391,0.05769862,97825.0,97824.0,1.911894]
[1733791305787,0.06269862,97825.0,97824.0,1.911894]
[1733791305988,0.16583347,97825.0,97824.0,1.911894]
[1733791306184,0.013,97825.0,97824.0,1.911894]
[1733791306385,0.013,97825.0,97824.0,1.92467394]
[1733791306789,0.13524506,97825.0,97824.0,1.92467394]
[1733791306982,0.013,97825.0,97824.0,1.92467394]
[1733791307291,0.21216523,97849.0,97824.0,1.92467394]
[1733791307292,0.12224506,97829.0,97824.0,1.92467394]
[1733791307494,0.40677456,97858.0,97830.0,0.051091]
[1733791307495,0.12224506,97831.0,97830.0,0.051091]
[1733791307995,0.051077,97856.0,97834.0,0.051089]
[1733791307996,0.12224506,97835.0,97834.0,0.051089]
[1733791308185,0.12224506,97835.0,97834.0,0.411889]
[1733791308386,0.12224506,97837.0,97834.0,0.411889]
[1733791308685,0.12231894,97836.0,97834.0,0.411889]
[1733791308882,0.12224506,97835.0,97834.0,0.411889]
[1733791309300,0.12924506,97835.0,97834.0,1.912889]
[1733791309489,0.007,97835.0,97834.0,1.912889]
[1733791309987,0.00707388,97836.0,97834.0,1.912889]
[1733791310191,0.05107,97869.0,97834.0,1.912889]
[1733791310192,2.2e-07,97843.0,97835.0,0.3955]
[1733791310492,0.18340234,97889.0,97842.0,0.3608]
[1733791310691,0.04966994,97888.0,97879.0,0.051065]
[1733791310894,0.02014047,97886.0,97881.0,0.3608]
[1733791311213,0.02014047,97886.0,97857.0,0.3608]
[1733791311214,0.3608,97882.0,97857.0,0.3608]
[1733791311390,0.051073,97864.0,97857.0,0.3608]
[1733791311589,0.051075,97861.0,97857.0,0.3608]
[1733791311792,0.23405997,97861.0,97857.0,0.3608]
[1733791312100,0.04968012,97860.0,97857.0,0.3608]
[1733791312400,0.0806,97863.0,97857.0,0.411876]
[1733791313288,0.051075,97860.0,97857.0,0.3608]
[1733791313491,0.051076,97859.0,97857.0,0.3608]
[1733791315292,0.052076,97859.0,97857.0,0.3608]
[1733791315790,0.053076,97859.0,97857.0,0.3608]
[1733791315993,0.002,97859.0,97855.0,0.00153277]
[1733791316195,0.002,97859.0,97852.0,9.004e-05]
[1733791316196,0.0827,97858.0,97852.0,9.004e-05]
[1733791316386,0.051079,97853.0,97852.0,9.004e-05]
[1733791317400,0.15708593,97853.0,97852.0,9.004e-05]
[1733791317588,0.20677302,97853.0,97852.0,9.004e-05]
[1733791318294,0.20677302,97853.0,97852.0,0.00109004]
[1733791319489,0.20863719,97853.0,97852.0,0.00109004]
[1733791319899,0.20863589,97853.0,97852.0,0.00109004]
[1733791322594,0.67373132,97853.0,97852.0,0.00109004]
[1733791322795,0.051085,97841.0,97839.0,0.3608]
[1733791322999,0.04968709,97840.0,97839.0,0.3608]
[1733791323198,0.04968709,97840.0,97825.0,0.3608]
[1733791323199,0.051091,97831.0,97825.0,0.3608]
[1733791323497,0.051091,97831.0,97816.0,0.3608]
[1733791323498,0.41048709,97830.0,97817.0,1.5]
[1733791323702,0.51777867,97830.0,97817.0,1.5]
[1733791323906,0.51790069,97830.0,97817.0,1.5]
[1733791324402,0.36092202,97830.0,97817.0,1.5]
[1733791324608,0.57932244,97830.0,97817.0,1.5]
[1733791324992,0.051097,97818.0,97817.0,1.5]
[1733791326214,0.64348,97818.0,97768.0,0.0125964]
[1733791326412,0.64348,97818.0,97769.0,0.051122]
[1733791326413,0.051119,97776.0,97769.0,0.051122]
[1733791326698,0.3608,97777.0,97769.0,1.5]
[1733791326907,0.051122,97771.0,97769.0,1.5]
[1733791327204,0.00011241,97770.0,97769.0,1.5]
[1733791327403,0.051123,97769.0,97762.0,0.3608]
[1733791327794,0.051124,97767.0,97762.0,0.3608]
[1733791327996,0.051124,97767.0,97757.0,0.051129]
[1733791327997,0.051124,97767.0,97763.0,1.5]
[1733791328201,0.3608,97764.0,97763.0,1.5]
[1733791328399,0.3608,97764.0,97753.0,0.00010581]
[1733791328906,0.3608,97764.0,97762.0,0.004]
[1733791329107,0.051126,97763.0,97762.0,0.004]
[1733791329897,0.3608,97764.0,97753.0,0.00010581]
[1733791329898,0.05113,97754.0,97753.0,0.00610581]
[1733791330104,0.41193,97754.0,97753.0,1.50610581]
[1733791330399,0.41193,97754.0,97753.0,0.00610581]
[1733791330700,0.41193,97754.0,97753.0,0.01510581]
[1733791331097,0.3608,97754.0,97753.0,0.01510581]
[1733791331299,0.3618,97754.0,97753.0,0.01410581]
[1733791331899,0.3618,97754.0,97753.0,0.00810581]
[1733791332705,0.41293,97754.0,97753.0,0.00810581]
[1733791333005,0.41293,97754.0,97753.0,0.01210581]
[1733791333701,0.41293,97754.0,97753.0,1.51210581]
[1733791334308,0.38217742,97754.0,97753.0,1.51210581]
[1733791336519,0.38217742,97754.0,97753.0,1.87290581]
[1733791336520,0.02137742,97754.0,97753.0,1.87290581]
[1733791336706,0.02038957,97770.0,97753.0,1.87290581]
[1733791337019,0.02038957,97770.0,97769.0,0.051123]
[1733791337203,0.38118957,97770.0,97754.0,0.0837]
[1733791337405,0.3608,97761.0,97753.0,0.01210581]
[1733791337605,0.7216,97761.0,97753.0,0.01210581]
[1733791337824,0.05113,97755.0,97753.0,0.01210581]
[1733791338319,0.05113,97755.0,97753.0,0.00410581]
[1733791338520,0.05113,97755.0,97753.0,0.01210581]
[1733791339113,0.05213,97755.0,97753.0,0.00910581]
[1733791339809,0.0608256,97755.0,97753.0,0.00910581]
[1733791340309,0.0608256,97755.0,97733.0,1.5]
[1733791340310,0.05114,97736.0,97733.0,1.5]
[1733791340510,0.3608,97735.0,97733.0,1.5]
[1733791341515,0.3618,97735.0,97733.0,1.508]
[1733791341836,0.412941,97735.0,97733.0,0.008]
[1733791342225,0.412941,97735.0,97733.0,0.012]
[1733791342726,0.3618,97735.0,97733.0,0.063141]
[1733791342927,0.001,97735.0,97733.0,0.063141]
[1733791343237,0.02058074,97754.0,97752.0,0.051131]
[1733791343433,0.00052001,97754.0,97750.0,0.3608]
[1733791343726,0.3608,97763.0,97753.0,1.5]
[1733791343934,0.3608,97763.0,97762.0,0.051126]
[1733791344525,0.051119,97776.0,97769.0,0.051123]
[1733791344831,0.3608,97777.0,97769.0,0.051123]
[1733791345134,0.17603054,97780.0,97769.0,0.051123]
[1733791345323,0.16730772,97780.0,97769.0,0.051123]
[1733791345523,0.02838957,97770.0,97769.0,0.052123]
[1733791345727,0.01311241,97770.0,97769.0,0.412923]
[1733791346229,0.01311241,97770.0,97769.0,1.912923]
[1733791346420,0.01311241,97770.0,97769.0,1.552123]
[1733791346621,0.00911241,97770.0,97769.0,1.552123]
[1733791346928,0.00111241,97770.0,97769.0,1.551123]
[1733791347131,0.00311241,97770.0,97769.0,1.551123]
[1733791347524,0.00111241,97770.0,97769.0,1.552123]
[1733791348029,0.3608,97786.0,97785.0,0.051114]
[1733791348441,0.15128355,97827.0,97792.0,0.05111]
[1733791348442,0.051106,97800.0,97792.0,0.05111]
[1733791348734,0.051106,97800.0,97777.0,0.3608]
[1733791348735,0.051106,97800.0,97790.0,0.3608]
[1733791348945,9.834e-05,97799.0,97798.0,0.051107]
[1733791349431,0.051112,97789.0,97783.0,0.05124671]
[1733791349642,0.411912,97789.0,97783.0,0.05124671]
[1733791349828,0.3608,97789.0,97784.0,0.051114]
[1733791350223,0.005,97786.0,97784.0,0.051114]
[1733791350424,0.005,97786.0,97783.0,0.00013171]
[1733791350734,0.051114,97786.0,97783.0,0.00013171]
[1733791350932,0.051115,97785.0,97783.0,0.00013171]
[1733791351935,0.056115,97785.0,97783.0,0.00013171]
[1733791352131,0.059115,97785.0,97783.0,0.00013171]
[1733791352532,0.008,97785.0,97783.0,0.05124671]
[1733791353431,0.003,97785.0,97783.0,0.05124671]
[1733791353626,0.008,97785.0,97783.0,0.05124671]
[1733791354126,0.008,97785.0,97784.0,0.09778408]
[1733791354333,9.834e-05,97799.0,97784.0,0.10609368]
[1733791354536,9.834e-05,97799.0,97798.0,0.051107]
[1733791354743,9.834e-05,97799.0,97798.0,1.551107]
[1733791355531,0.00209834,97799.0,97798.0,1.5543029]
[1733791355735,0.05180548,97799.0,97798.0,1.5543029]
[1733791355929,0.05180548,97799.0,97798.0,1.56708574]
[1733791356444,0.00509834,97799.0,97798.0,1.56708574]
[1733791356631,0.00509834,97799.0,97798.0,1.56808574]
[1733791356831,0.06180248,97799.0,97798.0,1.57319906]
[1733791357028,0.16443347,97799.0,97798.0,1.57319906]
[1733791357438,0.01209834,97799.0,97798.0,1.57319906]
[1733791359633,0.15233513,97806.0,97799.0,0.3955]
[1733791359840,0.15233513,97809.0,97807.0,0.051103]
[1733791360037,0.15233513,97813.0,97811.0,0.051101]
[1733791360232,0.15233513,97815.0,97814.0,0.051099]
[1733791360539,0.15233513,97819.0,97816.0,0.051098]
[1733791360843,0.00010694,97818.0,97817.0,0.06707207]
[1733791361139,0.18286396,97830.0,97829.0,0.051091]
[1733791361140,0.15233513,97830.0,97829.0,0.051091]
[1733791361331,0.3608,97847.0,97827.0,0.3608]
[1733791361332,0.15233513,97834.0,97827.0,0.3608]
[1733791361535,0.15233513,97837.0,97835.0,0.051088]
[1733791361737,0.15233513,97839.0,97835.0,0.3608]
[1733791361936,0.15233513,97839.0,97838.0,0.051087]
[1733791362137,7.338e-05,97839.0,97838.0,0.051087]
[1733791362743,7.338e-05,97839.0,97838.0,1.551087]
[1733791364837,7.338e-05,97839.0,97838.0,1.552087]
[1733791365541,7.338e-05,97839.0,97838.0,1.555087]
[1733791365945,7.338e-05,97839.0,97838.0,1.561087]
[1733791366342,7.338e-05,97839.0,97838.0,1.562087]
[1733791366847,7.338e-05,97839.0,97838.0,1.559087]
[1733791367646,7.338e-05,97839.0,97838.0,0.058087]
[1733791368046,7.338e-05,97839.0,97838.0,0.0567871]
[1733791368744,7.338e-05,97839.0,97838.0,0.0537871]
[1733791368946,7.338e-05,97839.0,97838.0,0.0587871]
[1733791369344,3.8e-07,97839.0,97838.0,0.3587871]
[1733791369538,3.8e-07,97839.0,97838.0,0.3567871]
[1733791369744,3.8e-07,97839.0,97838.0,1.8567871]
[1733791369946,3.8e-07,97839.0,97838.0,1.8607871]
[1733791370738,3.8e-07,97839.0,97838.0,1.5607871]
[1733791370939,3.8e-07,97839.0,97838.0,1.56269267]
[1733791371343,3.8e-07,97839.0,97838.0,1.6010195]
[1733791371539,3.8e-07,97839.0,97838.0,1.6040195]
[1733791371739,3.8e-07,97839.0,97838.0,0.1040195]
[1733791372447,3.8e-07,97839.0,97838.0,1.6040195]
[1733791372842,3.8e-07,97839.0,97838.0,1.57080311]
[1733791373046,3.8e-07,97839.0,97838.0,1.56569267]
[1733791373351,3.8e-07,97839.0,97838.0,1.56249865]
[1733791373943,3.8e-07,97839.0,97838.0,1.55749865]
[1733791374253,3.8e-07,97839.0,97838.0,1.59471838]
[1733791374557,3.8e-07,97839.0,97838.0,1.56149865]
[1733791374751,3.8e-07,97839.0,97838.0,1.56249865]
[1733791374944,3.8e-07,97839.0,97838.0,1.8626102]
[1733791375147,3.8e-07,97839.0,97838.0,1.86580418]
[1733791375547,3.8e-07,97839.0,97838.0,2.26030418]
[1733791375749,3.8e-07,97839.0,97838.0,2.26441455]
[1733791375955,3.8e-07,97839.0,97838.0,1.99763174]
[1733791376253,3.8e-07,97839.0,97838.0,1.99863174]
[1733791377049,3.8e-07,97839.0,97838.0,1.99463174]
[1733791377249,3.8e-07,97839.0,97838.0,1.98963174]
[1733791377460,3.8e-07,97839.0,97838.0,2.29863174]
[1733791377842,3.8e-07,97839.0,97838.0,2.29463193]
[1733791378044,3.8e-07,97839.0,97838.0,2.29863193]
[1733791378754,3.8e-07,97839.0,97838.0,2.28963159]
[1733791379058,3.8e-07,97839.0,97838.0,2.29863159]
[1733791379851,3.8e-07,97839.0,97838.0,1.98963159]
[1733791380051,3.8e-07,97839.0,97838.0,2.29352143]
[1733791380354,3.8e-07,97839.0,97838.0,2.29862943]
[1733791381156,3.8e-07,97839.0,97838.0,2.26541411]
[1733791381349,3.8e-07,97839.0,97838.0,2.29862865]
[1733791382655,3.8e-07,97839.0,97838.0,2.30062865]
[1733791383058,3.8e-07,97839.0,97838.0,2.30062837]
[1733791384059,3.8e-07,97839.0,97838.0,2.30162837]
[1733791384557,0.12121189,97878.0,97874.0,0.051068]
[1733791384749,0.12121189,97878.0,97853.0,0.3955]
[1733791384750,0.04967145,97877.0,97876.0,0.051067]
[1733791384960,0.3608,97879.0,97867.0,0.3608]
[1733791385155,0.12182018,97870.0,97868.0,0.0638449]
[1733791385353,0.12182018,97870.0,97868.0,0.051071]
[1733791385548,0.00886883,97890.0,97867.0,0.3608]
[1733791385549,0.1219005,97872.0,97870.0,0.05107]
[1733791385749,8.032e-05,97872.0,97871.0,1.51596673]
[1733791386056,8.032e-05,97872.0,97871.0,1.52107581]
[1733791386863,8.032e-05,97872.0,97871.0,1.54151234]
[1733791387662,5e-07,97875.0,97874.0,0.051068]
[1733791387961,0.3608,97915.0,97874.0,0.051068]
[1733791387962,0.0849,97906.0,97899.0,0.051055]
[1733791388255,0.0849,97906.0,97899.0,1.5925607]
[1733791388657,0.0849,97906.0,97899.0,1.59266875]
[1733791388960,0.0849,97906.0,97905.0,0.411852]
[1733791389258,8.221e-05,97911.0,97905.0,0.411852]
[1733791389259,8.221e-05,97911.0,97910.0,0.051049]
[1733791389455,8.221e-05,97911.0,97910.0,0.05935142]
[1733791390165,8.221e-05,97911.0,97910.0,1.55935142]
[1733791390365,8.221e-05,97911.0,97910.0,1.98805006]
[1733791393449,2.1e-07,97911.0,97910.0,1.98805006]
[1733791394765,0.0849,97923.0,97911.0,0.3955]
[1733791394952,0.0849,97923.0,97922.0,0.051043]
[1733791395153,0.0849,97923.0,97922.0,0.06700505]
[1733791396667,0.0849,97923.0,97922.0,0.06381171]
[1733791396864,0.0849,97923.0,97922.0,0.01596046]
[1733791397167,0.0849,97923.0,97918.0,0.051045]
[1733791397564,0.0849,97923.0,97922.0,0.002]
[1733791397858,0.0849,97923.0,97918.0,0.051045]
[1733791398056,0.3608,97919.0,97918.0,0.051045]
[1733791398265,0.3608,97919.0,97893.0,0.051057]
[1733791398460,0.3608,97910.0,97900.0,1.5]
[1733791398660,0.3608,97910.0,97894.0,0.051057]
[1733791398661,0.3608,97902.0,97894.0,0.051057]
[1733791399162,0.3608,97902.0,97895.0,1.5]
[1733791399359,0.3608,97902.0,97895.0,1.50052]
[1733791399864,0.3608,97902.0,97895.0,1.5]
[1733791400165,0.3608,97902.0,97899.0,0.007]
[1733791400658,0.3608,97902.0,97895.0,1.50052]
[1733791400961,0.3608,97902.0,97895.0,1.501]
[1733791401460,0.051055,97898.0,97895.0,0.001]
[1733791401660,0.0823,97897.0,97890.0,8.498e-05]
[1733791401865,0.3608,97891.0,97890.0,8.498e-05]
[1733791402068,0.3608,97891.0,97890.0,1.50008498]
[1733791403369,0.3608,97891.0,97890.0,1.50408498]
[1733791404167,0.3608,97891.0,97890.0,1.50608498]
[1733791406873,0.3608,97891.0,97890.0,0.00608498]
[1733791407765,0.6608,97891.0,97883.0,1.50052]
[1733791408075,0.051062,97885.0,97883.0,1.5]
[1733791408966,0.051062,97885.0,97883.0,1.507]
[1733791409271,0.3,97885.0,97874.0,0.00153245]
[1733791409470,0.411867,97875.0,97874.0,0.00153245]
[1733791409664,0.411867,97875.0,97866.0,8.494e-05]
[1733791409665,0.051071,97867.0,97866.0,8.494e-05]
[1733791409872,0.411871,97867.0,97866.0,8.494e-05]
[1733791411062,0.3618,97867.0,97866.0,8.494e-05]
[1733791412076,0.3618,97867.0,97866.0,1.50008494]
[1733791412376,0.3648,97867.0,97866.0,1.50008494]
[1733791412875,0.3628,97867.0,97866.0,1.50008494]
[1733791413264,0.3618,97867.0,97866.0,1.50008494]
[1733791413463,0.3638,97867.0,97866.0,8.494e-05]
[1733791413875,0.5343,97867.0,97866.0,8.494e-05]
[1733791414776,0.5353,97867.0,97866.0,8.494e-05]
[1733791415878,0.5373,97867.0,97866.0,8.494e-05]
[1733791416381,0.5363,97867.0,97866.0,8.494e-05]
[1733791416674,0.5373,97867.0,97866.0,8.494e-05]
[1733791417471,0.8373,97867.0,97866.0,8.494e-05]
[1733791419278,0.8373,97867.0,97814.0,0.3608]
[1733791419279,0.051087,97838.0,97814.0,0.3608]
[1733791419478,0.3608,97837.0,97817.0,0.0808]
[1733791419777,0.3608,97837.0,97825.0,0.051093]
[1733791420279,0.36090539,97837.0,97817.0,0.0808]
[1733791420577,0.36090539,97837.0,97818.0,0.051097]
[1733791420774,0.36090539,97837.0,97822.0,0.051095]
[1733791420966,0.36090539,97837.0,97823.0,0.051094]
[1733791421169,0.36090539,97837.0,97824.0,0.051093]
[1733791421170,0.37013302,97837.0,97824.0,0.051093]
[1733791421366,0.37113302,97837.0,97824.0,0.051093]
[1733791421972,0.37313302,97837.0,97824.0,0.051093]
[1733791423277,0.37313302,97837.0,97836.0,1.551088]
[1733791423877,0.38395692,97837.0,97836.0,1.551088]
[1733791424280,0.02315692,97837.0,97836.0,1.551088]
[1733791424476,0.00310539,97837.0,97836.0,1.551088]
[1733791424674,0.3608,97853.0,97851.0,0.051079]
[1733791424876,0.3608,97853.0,97836.0,1.5]
[1733791425078,0.3608,97853.0,97846.0,0.051082]
[1733791425473,0.3608,97853.0,97850.0,0.05108]
[1733791425675,0.00011637,97852.0,97850.0,0.05108]
[1733791425875,0.02105758,97852.0,97850.0,0.05108]
[1733791426681,0.02205758,97852.0,97850.0,0.05108]
[1733791427791,0.02205758,97852.0,97851.0,0.0869]
[1733791428281,0.02105758,97852.0,97851.0,0.0869]
[1733791428785,0.00011637,97852.0,97851.0,0.0869]
[1733791428978,0.3608,97860.0,97859.0,0.051076]
[1733791429185,0.3608,97873.0,97859.0,0.3608]
[1733791429489,0.18286396,97885.0,97859.0,0.3608]
[1733791429490,0.15203934,97880.0,97878.0,0.051065]
[1733791429686,0.16141825,97887.0,97881.0,0.051064]
[1733791429984,0.0001069,97886.0,97881.0,0.051064]
[1733791430573,0.0001069,97886.0,97878.0,0.3608]
[1733791430983,0.0001069,97886.0,97873.0,0.3608]
[1733791431183,0.0001069,97886.0,97873.0,0.411868]
[1733791431383,0.0001069,97886.0,97874.0,0.051067]
[1733791431881,0.0001069,97886.0,97875.0,0.051067]
[1733791431882,0.0031069,97886.0,97875.0,0.051067]
[1733791432480,0.02091058,97882.0,97874.0,0.0831]
[1733791432675,0.0031069,97886.0,97885.0,0.051062]
[1733791432876,0.0001069,97886.0,97885.0,0.051062]
[1733791433178,0.00153285,97901.0,97899.0,0.051055]
[1733791433575,0.15203934,97915.0,97900.0,0.0845]
[1733791433784,0.15203934,97919.0,97901.0,1.5]
[1733791434083,0.15203934,97920.0,97901.0,1.5]
[1733791434302,0.02040622,97908.0,97901.0,1.5]
[1733791434580,0.02040622,97908.0,97907.0,0.05105]
[1733791435177,0.02040622,97908.0,97907.0,1.55105]
[1733791435579,0.02240622,97908.0,97907.0,1.55105]
[1733791435975,0.02540622,97908.0,97907.0,1.55105]
[1733791436388,0.02540622,97908.0,97907.0,0.05105]
[1733791436590,0.00513134,97908.0,97907.0,0.05105]
[1733791436979,0.00713134,97908.0,97907.0,0.41185]
[1733791437690,0.15203934,97947.0,97907.0,0.36984376]
[1733791437990,0.51283934,97939.0,97927.0,0.05104]
[1733791438190,0.3608,97939.0,97927.0,0.05104]
[1733791438582,9.244e-05,97938.0,97928.0,0.051039]
[1733791439085,0.051035,97936.0,97919.0,1.5]
[1733791439278,0.051035,97936.0,97923.0,0.051042]
[1733791439781,0.051044,97921.0,97919.0,0.00056]
[1733791439989,0.3608,97925.0,97907.0,0.3648]
[1733791440292,0.3608,97916.0,97907.0,0.3608]
[1733791440480,0.051048,97911.0,97907.0,0.3608]
[1733791440893,0.05105,97909.0,97901.0,0.051053]
[1733791441782,0.05105,97909.0,97903.0,0.051052]
[1733791441984,0.05205,97909.0,97903.0,0.051052]
[1733791442777,0.001,97909.0,97897.0,0.3609137]
[1733791442984,0.051055,97899.0,97897.0,0.3609137]
[1733791443984,0.3608,97898.0,97897.0,0.0001137]
[1733791444787,0.3608,97906.0,97897.0,0.0001137]
[1733791444990,0.3608,97906.0,97897.0,0.0511687]
[1733791445192,0.3608,97906.0,97897.0,0.0011137]
[1733791445393,0.3608,97906.0,97904.0,0.051052]
[1733791446087,0.02011953,97905.0,97904.0,0.051052]
[1733791447580,0.02011953,97905.0,97901.0,0.3608]
[1733791448186,0.02011953,97905.0,97902.0,1.5]
[1733791448384,0.02011953,97905.0,97897.0,0.0011137]
[1733791448588,0.051055,97898.0,97897.0,0.0001137]
[1733791450090,0.051055,97898.0,97897.0,0.0011137]
[1733791450091,0.17241957,97898.0,97897.0,0.0011137]
[1733791450596,0.051055,97898.0,97897.0,0.0011137]
[1733791451096,0.06035508,97898.0,97897.0,0.0011137]
[1733791451794,0.15203934,97898.0,97897.0,0.0011137]
[1733791452492,0.0848,97899.0,97897.0,0.0011137]
[1733791452783,0.135855,97899.0,97897.0,0.0011137]
[1733791453288,0.121619,97898.0,97897.0,0.0011137]
[1733791453594,0.135855,97899.0,97897.0,0.0011137]
[1733791453781,0.13105423,97900.0,97897.0,0.0011137]
[1733791453982,0.48308645,97902.0,97897.0,0.0521687]
[1733791454186,0.12172644,97900.0,97897.0,0.0521687]
[1733791454686,0.12172644,97899.0,97897.0,0.0521687]
[1733791454884,0.12172644,97900.0,97897.0,0.0521687]
[1733791455086,0.37060477,97902.0,97897.0,0.0521687]
[1733791455087,0.12172644,97898.0,97897.0,0.0521687]
[1733791455297,0.12172644,97898.0,97897.0,0.0511687]
[1733791455481,0.12472644,97900.0,97897.0,0.0511687]
[1733791455690,0.003,97900.0,97897.0,0.0511687]
[1733791455991,0.003,97899.0,97897.0,0.0511687]
[1733791456189,0.12172644,97898.0,97897.0,0.0511687]
[1733791456495,0.12472644,97898.0,97897.0,0.0001137]
[1733791457294,0.003,97898.0,97897.0,0.0001137]
[1733791457982,0.003,97900.0,97897.0,0.0001137]
[1733791458487,0.12206264,97900.0,97898.0,0.051055]
[1733791458690,0.12206264,97899.0,97898.0,0.051055]
[1733791459193,0.003,97900.0,97898.0,1.551055]
[1733791459907,0.15665872,97899.0,97898.0,1.551055]
[1733791461186,0.10999782,97899.0,97898.0,1.551055]
[1733791461390,0.0526609,97899.0,97898.0,1.55424769]
[1733791461588,0.0496609,97899.0,97898.0,1.55424769]
[1733791492014,0.27553859,97924.0,97923.0,0.051042]
[1733791492414,0.0206476,97930.0,97923.0,0.051042]
[1733791492415,0.27553859,97925.0,97923.0,0.051042]
[1733791492927,0.27553859,97924.0,97923.0,0.051042]
[1733791493217,0.21436151,97922.0,97921.0,0.051043]
[1733791493520,0.27553859,97932.0,97924.0,0.051041]
[1733791493814,0.27553859,97932.0,97918.0,0.3608]
[1733791493815,0.27553859,97934.0,97933.0,0.051037]
[1733791494021,0.27553859,97934.0,97929.0,0.3608]
[1733791494022,0.27560167,97932.0,97929.0,0.3608]
[1733791494619,0.27560167,97932.0,97931.0,1.5]
[1733791494816,9.244e-05,97938.0,97931.0,1.5]
[1733791494817,0.30309318,97937.0,97931.0,1.5]
[1733791495007,0.30318562,97938.0,97936.0,0.051035]
[1733791495617,9.244e-05,97938.0,97931.0,1.5]
[1733791495918,0.30309318,97936.0,97931.0,1.5]
[1733791496108,9.244e-05,97938.0,97933.0,0.051037]
[1733791496314,0.27558074,97932.0,97931.0,1.5]
[1733791496515,0.27558074,97932.0,97931.0,1.551038]
[1733791497419,0.27558074,97933.0,97931.0,1.551038]
[1733791497608,0.27558074,97934.0,97932.0,0.051037]
[1733791498012,9.244e-05,97938.0,97936.0,0.051035]
[1733791499413,0.33678342,97932.0,97931.0,1.5]
[1733791499614,0.33678342,97932.0,97930.0,0.051038]
[1733791499816,0.33678342,97931.0,97930.0,0.051038]
[1733791500212,0.33678342,97931.0,97930.0,1.551038]
[1733791500418,0.33678342,97932.0,97930.0,1.551038]
[1733791501118,0.30615486,97931.0,97930.0,1.551038]
[1733791501317,0.30615486,97932.0,97930.0,1.551038]
[1733791501519,0.30615486,97931.0,97930.0,1.551038]
[1733791502109,0.33687586,97938.0,97934.0,0.051036]
[1733791502529,0.30625411,97938.0,97934.0,0.051036]
[1733791502808,0.30625411,97938.0,97907.0,0.02036421]
[1733791502809,0.11134101,97930.0,97909.0,0.3608]
[1733791503213,0.11134101,97930.0,97899.0,0.17040418]
[1733791503214,0.11134101,97920.0,97914.0,0.3608]
[1733791503410,0.051048,97912.0,97899.0,0.3608]
[1733791503619,0.077,97911.0,97899.0,0.3608]
[1733791503825,0.11134101,97900.0,97899.0,0.3608]
[1733791504326,0.11134101,97900.0,97899.0,1.8608]
[1733791505115,0.11134101,97900.0,97899.0,1.5]
[1733791505316,0.051054,97899.0,97888.0,0.3608]
[1733791505817,0.051054,97899.0,97893.0,0.051058]
[1733791507322,0.051054,97899.0,97888.0,0.3608]
[1733791507323,0.077,97911.0,97906.0,0.05105]
[1733791507523,0.05105,97908.0,97899.0,0.051054]
[1733791507715,0.11134101,97900.0,97896.0,0.3608]
[1733791508322,0.11134101,97900.0,97899.0,1.5]
[1733791509817,0.051054,97901.0,97899.0,1.5]
[1733791510422,0.051054,97899.0,97898.0,0.3]
[1733791510629,0.051054,97899.0,97880.0,0.051064]
[1733791510921,0.051054,97899.0,97892.0,0.051058]
[1733791511415,0.051054,97899.0,97883.0,0.051063]
[1733791511826,0.051054,97899.0,97881.0,1.5]
[1733791512320,0.0001082,97898.0,97881.0,1.5]
[1733791512524,0.0001082,97898.0,97867.0,0.051071]
[1733791512723,0.0001082,97898.0,97860.0,0.008176]
[1733791512924,0.3608,97863.0,97860.0,0.008176]
[1733791513527,0.051074,97862.0,97860.0,0.008176]
[1733791513920,0.3608,97863.0,97862.0,0.051074]
[1733791514124,0.1443,97874.0,97862.0,0.051074]
[1733791514528,0.11134101,97870.0,97860.0,0.008176]
[1733791514724,0.370386,97875.0,97868.0,0.05107]
[1733791514925,0.11134101,97870.0,97868.0,0.05107]
[1733791515222,0.1442,97885.0,97866.0,0.3608]
[1733791515522,0.051057,97894.0,97875.0,0.051067]
[1733791515725,0.051057,97894.0,97883.0,0.411863]